[Event "*** Titled Tuesday Blitz AM"]
[Site "Chess.com"]
[Date "2020.01.07"]
[Round "2"]
[White "Indianlad"]
[Black "Oligan22"]
[Result "1-0"]
[WhiteElo "2933"]
[BlackElo "2481"]
[TimeControl "180+2"]
[EndTime "9:23:00 PST"]
[Termination "Indianlad won on time"]

1. Nf3 {[%clk 0:03:01.9]} 1... d5 {[%clk 0:02:59.2]} 2. d4 {[%clk 0:03:03.1]}
2... e6 {[%clk 0:02:51.8]} 3. c4 {[%clk 0:03:04.6]} 3... a6 {[%clk 0:02:51.4]}
4. Bg5 {[%clk 0:03:04.8]} 4... Nf6 {[%clk 0:02:41.6]} 5. Nbd2 {[%clk 0:03:05.2]}
5... Be7 {[%clk 0:02:40.7]} 6. g3 {[%clk 0:03:05.8]} 6... h6 {[%clk 0:02:35.2]}
7. Bxf6 {[%clk 0:03:06.3]} 7... Bxf6 {[%clk 0:02:37.1]} 8. Bg2 {[%clk
0:03:07.5]} 8... O-O {[%clk 0:02:37.4]} 9. O-O {[%clk 0:03:09.1]} 9... c5 {[%clk
0:02:29]} 10. dxc5 {[%clk 0:03:09.7]} 10... Bxb2 {[%clk 0:02:27.2]} 11. Rb1
{[%clk 0:03:11.2]} 11... Bf6 {[%clk 0:02:22.2]} 12. cxd5 {[%clk 0:03:09.8]}
12... exd5 {[%clk 0:02:22.7]} 13. Qb3 {[%clk 0:02:25.9]} 13... Re8 {[%clk
0:02:09.9]} 14. e3 {[%clk 0:02:20.6]} 14... Nc6 {[%clk 0:02:05.1]} 15. Rfd1
{[%clk 0:02:22]} 15... Qe7 {[%clk 0:01:53.5]} 16. Rbc1 {[%clk 0:02:05]} 16...
Be6 {[%clk 0:01:46.1]} 17. Qa4 {[%clk 0:02:06.4]} 17... Rac8 {[%clk 0:01:42]}
18. Nb3 {[%clk 0:02:07.6]} 18... Red8 {[%clk 0:01:31.5]} 19. Nbd4 {[%clk
0:01:37.5]} 19... Nxd4 {[%clk 0:01:28.7]} 20. exd4 {[%clk 0:01:39.4]} 20... Bg4
{[%clk 0:01:20.6]} 21. Re1 {[%clk 0:01:40.4]} 21... Qd7 {[%clk 0:01:20]} 22.
Qxd7 {[%clk 0:01:41]} 22... Rxd7 {[%clk 0:01:21.5]} 23. Ne5 {[%clk 0:01:42.5]}
23... Bxe5 {[%clk 0:01:13]} 24. Rxe5 {[%clk 0:01:44.4]} 24... Be6 {[%clk
0:01:03.2]} 25. f4 {[%clk 0:01:45.1]} 25... g6 {[%clk 0:01:01.8]} 26. Rb1 {[%clk
0:01:25.3]} 26... Rc6 {[%clk 0:00:56.9]} 27. a4 {[%clk 0:01:17.8]} 27... f6
{[%clk 0:00:48.9]} 28. Re3 {[%clk 0:01:18.7]} 28... Kf7 {[%clk 0:00:47.7]} 29.
a5 {[%clk 0:01:19.6]} 29... Bf5 {[%clk 0:00:35]} 30. Rxb7 {[%clk 0:01:15.3]}
30... Rxb7 {[%clk 0:00:26.9]} 31. Bxd5+ {[%clk 0:01:16.8]} 31... Kf8 {[%clk
0:00:10.2]} 32. Bxc6 {[%clk 0:01:17.7]} 32... Rb1+ {[%clk 0:00:11.5]} 33. Kf2
{[%clk 0:01:16.4]} 33... Rd1 {[%clk 0:00:08]} 34. d5 {[%clk 0:01:16.2]} 34...
Rc1 {[%clk 0:00:09.3]} 35. d6 {[%clk 0:01:16.2]} 35... Rxc5 {[%clk 0:00:09.8]}
36. d7 {[%clk 0:01:15.1]} 36... Rc2+ {[%clk 0:00:08.9]} 37. Ke1 {[%clk 0:01:07]}
37... Bxd7 {[%clk 0:00:05.4]} 38. Bxd7 {[%clk 0:01:08.9]} 38... Rxh2 {[%clk
0:00:06.7]} 39. Re6 {[%clk 0:01:10.3]} 39... Rg2 {[%clk 0:00:03.9]} 40. Rxa6
{[%clk 0:01:06.3]} 40... Rxg3 {[%clk 0:00:05.2]} 41. Ra8+ {[%clk 0:01:03.9]}
41... Ke7 {[%clk 0:00:06.1]} 42. a6 {[%clk 0:00:58.8]} 1-0

[Event "*** Titled Tuesday Blitz AM"]
[Site "Chess.com"]
[Date "2020.01.07"]
[Round "2"]
[White "miroslavsavic"]
[Black "BeanScreen"]
[Result "1-0"]
[WhiteElo "2068"]
[BlackElo "2413"]
[TimeControl "180+2"]
[EndTime "9:23:00 PST"]
[Termination "miroslavsavic won by resignation"]

1. Nf3 {[%clk 0:03:01.9]} 1... d5 {[%clk 0:03:00.2]} 2. d4 {[%clk 0:03:02]} 2...
Nf6 {[%clk 0:03:01.8]} 3. c4 {[%clk 0:03:03.9]} 3... dxc4 {[%clk 0:03:03.7]} 4.
Nc3 {[%clk 0:02:59.7]} 4... a6 {[%clk 0:03:04.6]} 5. a4 {[%clk 0:03:00.1]} 5...
e6 {[%clk 0:03:05]} 6. e3 {[%clk 0:02:51.1]} 6... c5 {[%clk 0:03:03.9]} 7. Bxc4
{[%clk 0:02:51.2]} 7... Nc6 {[%clk 0:03:05.3]} 8. O-O {[%clk 0:02:43.5]} 8...
Be7 {[%clk 0:03:06.1]} 9. dxc5 {[%clk 0:02:27.9]} 9... Bxc5 {[%clk 0:03:05.1]}
10. Qxd8+ {[%clk 0:02:27.6]} 10... Kxd8 {[%clk 0:03:04.6]} 11. Rd1+ {[%clk
0:02:23]} 11... Ke7 {[%clk 0:03:05.8]} 12. Nd4 {[%clk 0:02:23.1]} 12... Bd7
{[%clk 0:02:37.5]} 13. Nce2 {[%clk 0:02:13.5]} 13... Rhd8 {[%clk 0:02:18.7]} 14.
b3 {[%clk 0:02:06.1]} 14... e5 {[%clk 0:00:21.6]} 15. Nxc6+ {[%clk 0:02:03.4]}
15... Bxc6 {[%clk 0:00:23.5]} 16. Bb2 {[%clk 0:02:03.9]} 16... Rxd1+ {[%clk
0:00:18.4]} 17. Rxd1 {[%clk 0:02:03.4]} 17... b5 {[%clk 0:00:20.3]} 18. Bd3
{[%clk 0:01:55.4]} 18... bxa4 {[%clk 0:00:19.3]} 19. Rc1 {[%clk 0:01:43.2]}
19... Nd7 {[%clk 0:00:18.9]} 20. bxa4 {[%clk 0:01:41.1]} 20... Bxa4 {[%clk
0:00:19.2]} 21. Be4 {[%clk 0:01:24]} 21... Rb8 {[%clk 0:00:20.3]} 22. Bxe5
{[%clk 0:01:22]} 22... Nxe5 {[%clk 0:00:16.1]} 23. Rxc5 {[%clk 0:01:20.8]} 23...
Ng4 {[%clk 0:00:10.2]} 24. h3 {[%clk 0:01:16.3]} 24... Nf6 {[%clk 0:00:09]} 25.
Bd3 {[%clk 0:01:13.8]} 25... Bb5 {[%clk 0:00:10.3]} 26. Nc1 {[%clk 0:01:04.4]}
26... Bxd3 {[%clk 0:00:10]} 27. Nxd3 {[%clk 0:01:05]} 27... Rb3 {[%clk
0:00:11.3]} 28. Ne5 {[%clk 0:01:00.5]} 28... Rb1+ {[%clk 0:00:10.1]} 29. Kh2
{[%clk 0:01:00.8]} 29... Ne4 {[%clk 0:00:11.2]} 30. Rc2 {[%clk 0:00:59]} 30...
f6 {[%clk 0:00:11.2]} 31. Nc6+ {[%clk 0:00:59]} 31... Kd6 {[%clk 0:00:12.3]} 32.
f3 {[%clk 0:00:55]} 32... Nc5 {[%clk 0:00:10.7]} 33. Na5 {[%clk 0:00:51.3]}
33... Nd3 {[%clk 0:00:09.9]} 34. Rd2 {[%clk 0:00:51.1]} 34... Kc5 {[%clk
0:00:07.4]} 35. Rxd3 {[%clk 0:00:50.3]} 35... Kb5 {[%clk 0:00:08.1]} 36. Nb7
{[%clk 0:00:49.7]} 36... Kc6 {[%clk 0:00:09]} 37. Nd8+ {[%clk 0:00:49.1]} 37...
Kc5 {[%clk 0:00:10.4]} 38. Ne6+ {[%clk 0:00:49.1]} 38... Kc4 {[%clk 0:00:11.8]}
39. Ra3 {[%clk 0:00:49.9]} 39... Rb6 {[%clk 0:00:12.1]} 40. Nxg7 {[%clk
0:00:49]} 1-0

[Event "*** Titled Tuesday Blitz AM"]
[Site "Chess.com"]
[Date "2020.01.07"]
[Round "2"]
[White "AntonSmirnov"]
[Black "Kubas1010"]
[Result "0-1"]
[WhiteElo "2890"]
[BlackElo "2627"]
[TimeControl "180+2"]
[EndTime "9:23:01 PST"]
[Termination "Kubas1010 won by resignation"]

1. e4 {[%clk 0:03:01.9]} 1... e5 {[%clk 0:03:00.7]} 2. Nf3 {[%clk 0:03:03]} 2...
Nc6 {[%clk 0:03:02.2]} 3. Bb5 {[%clk 0:03:04.7]} 3... a6 {[%clk 0:03:03.5]} 4.
Bxc6 {[%clk 0:03:05.1]} 4... dxc6 {[%clk 0:03:05.4]} 5. O-O {[%clk 0:03:06.5]}
5... Bg4 {[%clk 0:03:06.2]} 6. h3 {[%clk 0:03:07.6]} 6... Bh5 {[%clk 0:03:07.4]}
7. d3 {[%clk 0:03:06.7]} 7... f6 {[%clk 0:03:08.5]} 8. Be3 {[%clk 0:03:04.8]}
8... c5 {[%clk 0:03:09.8]} 9. Nbd2 {[%clk 0:03:05.5]} 9... Bd6 {[%clk
0:03:10.7]} 10. a4 {[%clk 0:02:58.3]} 10... Ne7 {[%clk 0:03:10.8]} 11. a5 {[%clk
0:02:57.8]} 11... Nc6 {[%clk 0:03:11.7]} 12. c3 {[%clk 0:02:58.3]} 12... O-O
{[%clk 0:03:02.2]} 13. Qb3+ {[%clk 0:02:57.8]} 13... Bf7 {[%clk 0:03:03]} 14.
Nc4 {[%clk 0:02:50.8]} 14... Qd7 {[%clk 0:02:35.5]} 15. Qa3 {[%clk 0:02:38.7]}
15... Rfd8 {[%clk 0:02:12]} 16. Rfd1 {[%clk 0:02:35.4]} 16... Bf8 {[%clk
0:01:56.8]} 17. Rd2 {[%clk 0:02:09.7]} 17... Nd4 {[%clk 0:01:55.5]} 18. Nh2
{[%clk 0:01:55.8]} 18... Qb5 {[%clk 0:01:54.9]} 19. Rdd1 {[%clk 0:01:32.2]}
19... Nc2 {[%clk 0:01:54]} 20. Qa2 {[%clk 0:01:31.1]} 20... Nxa1 {[%clk
0:01:49.7]} 21. Qxa1 {[%clk 0:01:30.7]} 21... Qb3 {[%clk 0:01:44.1]} 22. Nf3
{[%clk 0:01:21.6]} 22... Bxc4 {[%clk 0:01:17.1]} 23. Nd2 {[%clk 0:01:21.5]}
23... Qa2 {[%clk 0:01:18.4]} 24. dxc4 {[%clk 0:01:21.6]} 24... Qxa1 {[%clk
0:01:19.3]} 25. Rxa1 {[%clk 0:01:23.5]} 25... b5 {[%clk 0:01:03.1]} 26. cxb5
{[%clk 0:01:12.7]} 26... axb5 {[%clk 0:01:04.2]} 27. c4 {[%clk 0:01:14.2]} 27...
c6 {[%clk 0:00:57.9]} 28. a6 {[%clk 0:00:35.7]} 28... Rd7 {[%clk 0:00:51.4]} 29.
cxb5 {[%clk 0:00:27.4]} 29... cxb5 {[%clk 0:00:52]} 30. Ra5 {[%clk 0:00:28.9]}
30... Rda7 {[%clk 0:00:50.4]} 31. Rxb5 {[%clk 0:00:30]} 31... Rxa6 {[%clk
0:00:49.8]} 32. Nc4 {[%clk 0:00:27]} 32... Ra4 {[%clk 0:00:46.7]} 33. Nb6 {[%clk
0:00:13.6]} 33... Ra1+ {[%clk 0:00:47.4]} 34. Kh2 {[%clk 0:00:14.4]} 34... Rb8
{[%clk 0:00:48.4]} 35. b4 {[%clk 0:00:11.8]} 35... cxb4 {[%clk 0:00:46.1]} 36.
Rd5 {[%clk 0:00:12.2]} 36... Ra6 {[%clk 0:00:38.6]} 37. Nd7 {[%clk 0:00:12.3]}
37... Rb7 {[%clk 0:00:30.2]} 38. Bc5 {[%clk 0:00:11.4]} 38... Rxd7 {[%clk
0:00:31.1]} 39. Rxd7 {[%clk 0:00:11]} 0-1

[Event "*** Titled Tuesday Blitz AM"]
[Site "Chess.com"]
[Date "2020.01.07"]
[Round "2"]
[White "Region_07"]
[Black "elpepinillo14"]
[Result "1-0"]
[WhiteElo "2374"]
[BlackElo "2636"]
[TimeControl "180+2"]
[EndTime "9:23:03 PST"]
[Termination "Region_07 won by resignation"]

1. d4 {[%clk 0:03:01.4]} 1... e6 {[%clk 0:03:01.9]} 2. Nf3 {[%clk 0:03:00.1]}
2... d5 {[%clk 0:03:03.8]} 3. Bg5 {[%clk 0:02:56.5]} 3... Nf6 {[%clk 0:03:02.3]}
4. e3 {[%clk 0:02:54.6]} 4... c5 {[%clk 0:03:01.1]} 5. c4 {[%clk 0:02:48.4]}
5... Qb6 {[%clk 0:02:57.3]} 6. Bxf6 {[%clk 0:02:33.8]} 6... Qxb2 {[%clk
0:02:51.8]} 7. Nbd2 {[%clk 0:02:25.4]} 7... gxf6 {[%clk 0:02:49.9]} 8. Rb1
{[%clk 0:02:24.6]} 8... Qa3 {[%clk 0:02:46.7]} 9. cxd5 {[%clk 0:02:19.7]} 9...
exd5 {[%clk 0:02:47.2]} 10. Bb5+ {[%clk 0:02:20.4]} 10... Nc6 {[%clk 0:02:46.9]}
11. O-O {[%clk 0:02:20.4]} 11... Bd6 {[%clk 0:02:41.9]} 12. e4 {[%clk
0:02:04.4]} 12... O-O {[%clk 0:02:34.7]} 13. Rb3 {[%clk 0:01:56.6]} 13... Qxa2
{[%clk 0:02:23.9]} 14. dxc5 {[%clk 0:01:37.1]} 14... Bxc5 {[%clk 0:02:13.1]} 15.
exd5 {[%clk 0:01:35.6]} 15... Ne7 {[%clk 0:02:07.7]} 16. Ne4 {[%clk 0:01:33.3]}
16... b6 {[%clk 0:01:58.2]} 17. Nxf6+ {[%clk 0:01:27.1]} 17... Kg7 {[%clk
0:01:56.7]} 18. Nh5+ {[%clk 0:01:19.3]} 18... Kg8 {[%clk 0:01:54.9]} 19. d6
{[%clk 0:01:04]} 19... Ng6 {[%clk 0:01:33.8]} 20. Ng5 {[%clk 0:00:36.6]} 20...
Bb7 {[%clk 0:00:50.5]} 21. Nf6+ {[%clk 0:00:34.8]} 21... Kg7 {[%clk 0:00:50.1]}
22. Bc4 {[%clk 0:00:28.4]} 22... Qa4 {[%clk 0:00:42.9]} 23. Qg4 {[%clk
0:00:19.3]} 23... Kxf6 {[%clk 0:00:28.1]} 24. Nxh7+ {[%clk 0:00:20.1]} 24... Kg7
{[%clk 0:00:28.8]} 25. Rg3 {[%clk 0:00:14.8]} 25... Kxh7 {[%clk 0:00:17.3]} 26.
Qh5+ {[%clk 0:00:15.8]} 26... Kg7 {[%clk 0:00:17.2]} 27. Qe5+ {[%clk 0:00:16.6]}
27... Kh7 {[%clk 0:00:07.6]} 28. Rh3+ {[%clk 0:00:17.6]} 28... Kg8 {[%clk
0:00:07.6]} 29. Qh5 {[%clk 0:00:09]} 29... Bxf2+ {[%clk 0:00:06.2]} 30. Rxf2
{[%clk 0:00:08.1]} 30... Qd1+ {[%clk 0:00:06.8]} 31. Qxd1 {[%clk 0:00:07.3]} 1-0

[Event "*** Titled Tuesday Blitz AM"]
[Site "Chess.com"]
[Date "2020.01.07"]
[Round "2"]
[White "shanemelaughcm"]
[Black "PotapovaM"]
[Result "1-0"]
[WhiteElo "2331"]
[BlackElo "2514"]
[TimeControl "180+2"]
[EndTime "9:23:09 PST"]
[Termination "shanemelaughcm won by resignation"]

1. e4 {[%clk 0:03:01.9]} 1... c5 {[%clk 0:03:00.6]} 2. d4 {[%clk 0:03:02.1]}
2... cxd4 {[%clk 0:03:00.7]} 3. c3 {[%clk 0:03:03.6]} 3... dxc3 {[%clk
0:03:02.6]} 4. Nxc3 {[%clk 0:03:04.9]} 4... d6 {[%clk 0:03:03.9]} 5. Nf3 {[%clk
0:03:02.7]} 5... Nc6 {[%clk 0:03:05]} 6. Bc4 {[%clk 0:03:02.3]} 6... a6 {[%clk
0:03:05.9]} 7. O-O {[%clk 0:03:02.7]} 7... Nf6 {[%clk 0:03:06.4]} 8. h3 {[%clk
0:02:59]} 8... e6 {[%clk 0:03:05]} 9. Qe2 {[%clk 0:02:59.7]} 9... Be7 {[%clk
0:03:03.4]} 10. Rd1 {[%clk 0:03:00.9]} 10... Bd7 {[%clk 0:03:02.9]} 11. Bf4
{[%clk 0:02:57.9]} 11... O-O {[%clk 0:02:57.5]} 12. Bxd6 {[%clk 0:02:54.6]}
12... Bxd6 {[%clk 0:02:52.3]} 13. Rxd6 {[%clk 0:02:56.5]} 13... Qe7 {[%clk
0:02:51.3]} 14. Rad1 {[%clk 0:02:56.5]} 14... Rfd8 {[%clk 0:02:49]} 15. e5
{[%clk 0:02:05]} 15... Ne8 {[%clk 0:02:44.9]} 16. R6d2 {[%clk 0:02:06.2]} 16...
b5 {[%clk 0:02:43.2]} 17. Bb3 {[%clk 0:02:06.1]} 17... Na5 {[%clk 0:02:43.3]}
18. Bc2 {[%clk 0:02:05.8]} 18... g6 {[%clk 0:02:35.2]} 19. b3 {[%clk 0:02:00.1]}
19... Bc6 {[%clk 0:02:27.4]} 20. Be4 {[%clk 0:01:49.7]} 20... Rac8 {[%clk
0:02:06.7]} 21. Bxc6 {[%clk 0:01:48.5]} 21... Nxc6 {[%clk 0:02:06.1]} 22. Ne4
{[%clk 0:01:49]} 22... Nb4 {[%clk 0:01:56.2]} 23. Nd6 {[%clk 0:01:12.4]} 23...
Nxd6 {[%clk 0:01:51.8]} 24. Rxd6 {[%clk 0:01:13.2]} 24... Nd5 {[%clk 0:01:47.8]}
25. Rxa6 {[%clk 0:01:04.8]} 25... Kg7 {[%clk 0:01:33.7]} 26. Qxb5 {[%clk
0:01:04.7]} 26... Rc2 {[%clk 0:01:14.1]} 27. Qa5 {[%clk 0:01:02.5]} 27... Rd7
{[%clk 0:01:02.8]} 28. Qa3 {[%clk 0:00:43.9]} 28... Qe8 {[%clk 0:00:42]} 29. Ra8
{[%clk 0:00:44.2]} 29... Rd8 {[%clk 0:00:43.3]} 30. Ra7 {[%clk 0:00:37.3]} 30...
Rd7 {[%clk 0:00:43.3]} 31. Nd4 {[%clk 0:00:35.2]} 31... Rcc7 {[%clk 0:00:39.2]}
32. Ra8 {[%clk 0:00:32.5]} 32... Rd8 {[%clk 0:00:39.9]} 33. Ra6 {[%clk
0:00:30.6]} 33... Rcd7 {[%clk 0:00:35.8]} 34. Nc6 {[%clk 0:00:30]} 34... Nf4
{[%clk 0:00:31.9]} 35. Rxd7 {[%clk 0:00:27]} 35... Rxd7 {[%clk 0:00:24.2]} 36.
Ra8 {[%clk 0:00:24]} 36... Rd1+ {[%clk 0:00:23]} 37. Kh2 {[%clk 0:00:24.5]} 1-0

[Event "*** Titled Tuesday Blitz AM"]
[Site "Chess.com"]
[Date "2020.01.07"]
[Round "2"]
[White "Rikikits"]
[Black "Jabberwockiez"]
[Result "1-0"]
[WhiteElo "2707"]
[BlackElo "2260"]
[TimeControl "180+2"]
[EndTime "9:23:10 PST"]
[Termination "Rikikits won by resignation"]

1. b3 {[%clk 0:03:01.9]} 1... e5 {[%clk 0:02:57.7]} 2. Bb2 {[%clk 0:03:03.8]}
2... Nc6 {[%clk 0:02:59.2]} 3. e3 {[%clk 0:03:05.4]} 3... Nf6 {[%clk 0:02:56.4]}
4. Bb5 {[%clk 0:03:06.2]} 4... Bd6 {[%clk 0:02:57.6]} 5. Na3 {[%clk 0:03:05.6]}
5... a6 {[%clk 0:02:58.5]} 6. Bxc6 {[%clk 0:03:05.7]} 6... dxc6 {[%clk
0:02:58.9]} 7. Nc4 {[%clk 0:03:07.4]} 7... O-O {[%clk 0:03:00.4]} 8. Nxe5 {[%clk
0:03:06.1]} 8... Re8 {[%clk 0:02:43]} 9. Ngf3 {[%clk 0:03:07.3]} 9... Bf5 {[%clk
0:02:38.5]} 10. O-O {[%clk 0:03:06.1]} 10... c5 {[%clk 0:02:39.7]} 11. h3 {[%clk
0:03:04.3]} 11... h6 {[%clk 0:02:37.6]} 12. d4 {[%clk 0:03:05.3]} 12... cxd4
{[%clk 0:02:37.6]} 13. exd4 {[%clk 0:03:06]} 13... c6 {[%clk 0:02:35.5]} 14. Re1
{[%clk 0:03:04.8]} 14... Nd5 {[%clk 0:02:31.5]} 15. Qd2 {[%clk 0:03:03.2]} 15...
f6 {[%clk 0:02:29]} 16. Nd3 {[%clk 0:03:02.9]} 16... Qc7 {[%clk 0:02:22]} 17. c4
{[%clk 0:02:45.4]} 17... Nf4 {[%clk 0:02:10.1]} 18. Nxf4 {[%clk 0:02:46.3]}
18... Bxf4 {[%clk 0:02:12]} 19. Qc3 {[%clk 0:02:47.4]} 19... Be4 {[%clk
0:02:08.2]} 20. Re2 {[%clk 0:02:41.8]} 20... Re6 {[%clk 0:02:02.6]} 21. Rae1
{[%clk 0:02:42.7]} 21... Rae8 {[%clk 0:02:03.8]} 22. Bc1 {[%clk 0:02:23.9]}
22... f5 {[%clk 0:01:55.2]} 23. Bxf4 {[%clk 0:02:19.2]} 23... Qxf4 {[%clk
0:01:57.1]} 24. Nd2 {[%clk 0:02:06.5]} 24... Rg6 {[%clk 0:01:45.7]} 25. f3
{[%clk 0:01:59.6]} 25... Rg3 {[%clk 0:01:28.5]} 26. Qe3 {[%clk 0:01:52.5]} 26...
Qh4 {[%clk 0:00:56.7]} 27. Qf2 {[%clk 0:01:52.9]} 27... Qxh3 {[%clk 0:00:20.1]}
28. fxe4 {[%clk 0:01:50.2]} 28... f4 {[%clk 0:00:21.4]} 29. Nf3 {[%clk
0:01:22.3]} 29... g5 {[%clk 0:00:21.7]} 30. Nh2 {[%clk 0:01:03.8]} 30... Rf8
{[%clk 0:00:20.8]} 31. Kh1 {[%clk 0:00:56.5]} 31... Qh4 {[%clk 0:00:20.5]} 32.
Rf1 {[%clk 0:00:53.8]} 32... f3 {[%clk 0:00:19.8]} 33. gxf3 {[%clk 0:00:55.7]}
33... Rfxf3 {[%clk 0:00:15.8]} 34. Qxf3 {[%clk 0:00:49.2]} 34... Rxf3 {[%clk
0:00:17.7]} 35. Rxf3 {[%clk 0:00:50.8]} 35... g4 {[%clk 0:00:17]} 36. Rfe3
{[%clk 0:00:43.6]} 36... g3 {[%clk 0:00:16.7]} 37. Rxg3+ {[%clk 0:00:43.8]}
37... Kh7 {[%clk 0:00:14.5]} 38. Rf3 {[%clk 0:00:43.1]} 38... Qg5 {[%clk
0:00:14.2]} 39. e5 {[%clk 0:00:42.7]} 39... Qc1+ {[%clk 0:00:14.9]} 40. Rf1
{[%clk 0:00:42.1]} 40... Qg5 {[%clk 0:00:12.7]} 41. e6 {[%clk 0:00:42.6]} 41...
Qh4 {[%clk 0:00:10.5]} 42. e7 {[%clk 0:00:42.3]} 1-0

[Event "*** Titled Tuesday Blitz AM"]
[Site "Chess.com"]
[Date "2020.01.07"]
[Round "2"]
[White "gemarin"]
[Black "MasterKroket"]
[Result "1-0"]
[WhiteElo "2046"]
[BlackElo "2405"]
[TimeControl "180+2"]
[EndTime "9:23:19 PST"]
[Termination "gemarin won by resignation"]

1. d4 {[%clk 0:03:01.9]} 1... Nf6 {[%clk 0:03:00.6]} 2. c4 {[%clk 0:03:02]} 2...
e6 {[%clk 0:03:02]} 3. Nf3 {[%clk 0:03:02.7]} 3... b6 {[%clk 0:03:01.4]} 4. a3
{[%clk 0:03:02.5]} 4... Bb7 {[%clk 0:03:02.2]} 5. Bg5 {[%clk 0:03:01.1]} 5... h6
{[%clk 0:03:02.6]} 6. Bh4 {[%clk 0:03:01.7]} 6... Be7 {[%clk 0:03:02.4]} 7. Nc3
{[%clk 0:03:01.8]} 7... Ne4 {[%clk 0:03:03]} 8. Bxe7 {[%clk 0:02:59.8]} 8...
Qxe7 {[%clk 0:03:04.9]} 9. Qd3 {[%clk 0:02:58.8]} 9... Nxc3 {[%clk 0:03:01.1]}
10. Qxc3 {[%clk 0:02:59.1]} 10... a5 {[%clk 0:03:01.2]} 11. O-O-O {[%clk
0:02:53.3]} 11... a4 {[%clk 0:02:58.3]} 12. d5 {[%clk 0:02:44.1]} 12... O-O
{[%clk 0:02:58.6]} 13. e4 {[%clk 0:02:44.8]} 13... Na6 {[%clk 0:02:56.8]} 14.
Nd4 {[%clk 0:02:39.6]} 14... Nc5 {[%clk 0:02:55.3]} 15. f3 {[%clk 0:02:30]}
15... e5 {[%clk 0:02:49.3]} 16. Nf5 {[%clk 0:02:29.5]} 16... Qf6 {[%clk
0:02:42]} 17. d6 {[%clk 0:02:29]} 17... c6 {[%clk 0:02:35.3]} 18. Kb1 {[%clk
0:02:21.1]} 18... Kh7 {[%clk 0:02:26.6]} 19. Qe3 {[%clk 0:02:19.6]} 19... Ba6
{[%clk 0:02:12.2]} 20. h4 {[%clk 0:02:16.1]} 20... Qe6 {[%clk 0:02:00.2]} 21.
Rc1 {[%clk 0:02:00.3]} 21... Nb3 {[%clk 0:02:00.5]} 22. Rc2 {[%clk 0:01:56.7]}
22... b5 {[%clk 0:02:01.8]} 23. g4 {[%clk 0:01:17.9]} 23... bxc4 {[%clk
0:01:58.9]} 24. h5 {[%clk 0:01:18.3]} 24... Rfb8 {[%clk 0:01:50.6]} 25. g5
{[%clk 0:01:13.1]} 25... Nd4 {[%clk 0:01:45.1]} 26. Nxd4 {[%clk 0:00:58.4]}
26... exd4 {[%clk 0:01:45.8]} 27. Qxd4 {[%clk 0:00:59]} 27... hxg5 {[%clk
0:01:43.5]} 28. h6 {[%clk 0:00:55.8]} 28... f6 {[%clk 0:01:28.2]} 29. hxg7+
{[%clk 0:00:48.4]} 29... Kxg7 {[%clk 0:01:29.2]} 30. Bh3 {[%clk 0:00:48.8]}
30... Qe5 {[%clk 0:01:24.8]} 31. Qxe5 {[%clk 0:00:45]} 31... fxe5 {[%clk
0:01:26]} 32. Bxd7 {[%clk 0:00:45.8]} 32... Bb5 {[%clk 0:01:01.3]} 33. Bf5
{[%clk 0:00:42.5]} 33... Rh8 {[%clk 0:01:01.7]} 34. Rxh8 {[%clk 0:00:30]} 34...
Rxh8 {[%clk 0:01:01.9]} 35. Rd2 {[%clk 0:00:31.3]} 35... Kf6 {[%clk 0:01:02.4]}
36. Kc2 {[%clk 0:00:29.5]} 36... Rd8 {[%clk 0:00:46.3]} 37. Kc3 {[%clk
0:00:29.2]} 37... c5 {[%clk 0:00:44.1]} 38. d7 {[%clk 0:00:13.3]} 38... Ke7
{[%clk 0:00:41.5]} 39. Rd5 {[%clk 0:00:14.4]} 39... Bxd7 {[%clk 0:00:37.2]} 40.
Rxe5+ {[%clk 0:00:15]} 40... Kf6 {[%clk 0:00:16.2]} 41. Rd5 {[%clk 0:00:15.7]}
1-0

[Event "*** Titled Tuesday Blitz AM"]
[Site "Chess.com"]
[Date "2020.01.07"]
[Round "2"]
[White "Batica1984"]
[Black "TST2014"]
[Result "1-0"]
[WhiteElo "2794"]
[BlackElo "2544"]
[TimeControl "180+2"]
[EndTime "9:23:31 PST"]
[Termination "Batica1984 won by resignation"]

1. e4 {[%clk 0:03:01.9]} 1... c5 {[%clk 0:03:00.6]} 2. Nc3 {[%clk 0:03:02.3]}
2... Nc6 {[%clk 0:03:01.6]} 3. Bb5 {[%clk 0:03:02.2]} 3... Nd4 {[%clk
0:03:00.7]} 4. Nf3 {[%clk 0:03:03.2]} 4... a6 {[%clk 0:03:01.2]} 5. Bc4 {[%clk
0:03:03.4]} 5... Nc6 {[%clk 0:03:02.2]} 6. d4 {[%clk 0:02:57.6]} 6... b5 {[%clk
0:03:00.2]} 7. Be2 {[%clk 0:02:56.4]} 7... cxd4 {[%clk 0:02:59.3]} 8. Nxd4
{[%clk 0:02:57]} 8... Bb7 {[%clk 0:03:00.8]} 9. O-O {[%clk 0:02:54.9]} 9... e6
{[%clk 0:02:49.4]} 10. Nxc6 {[%clk 0:02:40]} 10... dxc6 {[%clk 0:02:43]} 11. Bd3
{[%clk 0:02:36.9]} 11... c5 {[%clk 0:02:42.8]} 12. Qf3 {[%clk 0:02:31.8]} 12...
c4 {[%clk 0:02:41.7]} 13. Be2 {[%clk 0:02:32.2]} 13... Nf6 {[%clk 0:02:41.7]}
14. Bg5 {[%clk 0:02:23.5]} 14... Be7 {[%clk 0:02:41.5]} 15. Rad1 {[%clk
0:02:22]} 15... Qc7 {[%clk 0:02:40.8]} 16. Bf4 {[%clk 0:02:08.8]} 16... Qc6
{[%clk 0:02:41.4]} 17. Qg3 {[%clk 0:01:50.2]} 17... b4 {[%clk 0:02:28.8]} 18. e5
{[%clk 0:01:47.7]} 18... bxc3 {[%clk 0:02:10.8]} 19. exf6 {[%clk 0:01:48.4]}
19... Bxf6 {[%clk 0:02:03.6]} 20. Rd6 {[%clk 0:01:44.9]} 20... Qc8 {[%clk
0:01:54.9]} 21. bxc3 {[%clk 0:01:29.6]} 21... O-O {[%clk 0:01:53.5]} 22. Rb1
{[%clk 0:01:26.4]} 22... Bd5 {[%clk 0:01:43.8]} 23. Rdb6 {[%clk 0:01:24.3]}
23... Rd8 {[%clk 0:01:28.4]} 24. h3 {[%clk 0:01:23]} 24... Qc5 {[%clk
0:01:17.4]} 25. Be5 {[%clk 0:01:15.8]} 25... Bxe5 {[%clk 0:01:13.2]} 26. Qxe5
{[%clk 0:01:16.1]} 26... Qa3 {[%clk 0:01:07.2]} 27. R1b2 {[%clk 0:01:15.1]}
27... Qe7 {[%clk 0:00:48.7]} 28. a4 {[%clk 0:00:57.1]} 28... a5 {[%clk
0:00:46.8]} 29. Qf4 {[%clk 0:00:51.8]} 29... Qa3 {[%clk 0:00:46.4]} 30. Bh5
{[%clk 0:00:46.8]} 30... g6 {[%clk 0:00:43.7]} 31. Bf3 {[%clk 0:00:46.7]} 31...
Qxc3 {[%clk 0:00:42.3]} 32. Bxd5 {[%clk 0:00:46.8]} 32... Rxd5 {[%clk 0:00:39]}
33. Qe4 {[%clk 0:00:28.6]} 33... Rad8 {[%clk 0:00:34.2]} 34. Kh2 {[%clk
0:00:26.6]} 34... Rd4 {[%clk 0:00:34.4]} 35. Qe5 {[%clk 0:00:26.5]} 35... Qd2
{[%clk 0:00:32.5]} 36. Rb8 {[%clk 0:00:26.7]} 36... Qxf2 {[%clk 0:00:30.6]} 37.
c3 {[%clk 0:00:27.7]} 37... Rd5 {[%clk 0:00:30.7]} 38. Rxd8+ {[%clk 0:00:25.9]}
38... Rxd8 {[%clk 0:00:31.4]} 39. Rxf2 {[%clk 0:00:27.5]} 39... h5 {[%clk
0:00:29.2]} 40. Qxa5 {[%clk 0:00:28.4]} 40... Rd3 {[%clk 0:00:29.4]} 41. Qb4
{[%clk 0:00:29.1]} 41... Rd5 {[%clk 0:00:28]} 42. a5 {[%clk 0:00:30.3]} 42... h4
{[%clk 0:00:27.2]} 43. a6 {[%clk 0:00:31.6]} 43... Rd7 {[%clk 0:00:27.8]} 44.
Qb8+ {[%clk 0:00:32.1]} 44... Kg7 {[%clk 0:00:27.6]} 45. a7 {[%clk 0:00:34]}
45... Rxa7 {[%clk 0:00:29.2]} 46. Qxa7 {[%clk 0:00:35]} 1-0